bitfinex-derivatives/quotes_BTCF0:USTF0_20251115
["timestamp","ask_amount","ask_price","bid_price","bid_amount"]
[1763210182970,0.16142708,95917.0,95916.0,0.04427]
[1763210185767,0.16142708,95917.0,95916.0,0.05748]
[1763210186164,0.16142708,95917.0,95916.0,0.08548703]
[1763210186467,0.16142708,95917.0,95916.0,0.05748]
[1763210186776,0.00219803,95920.0,95919.0,0.04427]
[1763210186964,0.04585062,95926.0,95925.0,0.04427]
[1763210187270,0.15625902,95926.0,95925.0,0.04427]
[1763210188977,0.15725902,95926.0,95925.0,0.04427]
[1763210189475,0.15625902,95926.0,95925.0,0.04427]
[1763210189772,0.15725902,95926.0,95925.0,0.04427]
[1763210201080,0.15475902,95926.0,95925.0,0.04427]
[1763210202980,0.05193,95924.0,95923.0,0.3608]
[1763210203480,0.17094493,95924.0,95923.0,0.3608]
[1763210204282,0.17194493,95924.0,95923.0,0.3608]
[1763210205086,0.04531,95917.0,95916.0,0.00015639]
[1763210205591,0.5197949,95917.0,95916.0,0.00015639]
[1763210206182,0.5197949,95917.0,95905.0,0.03737017]
[1763210206183,0.04531,95913.0,95911.0,0.02804196]
[1763210206380,0.05512,95912.0,95911.0,0.02804196]
[1763210206581,0.17555101,95912.0,95911.0,0.02804196]
[1763210206780,0.05512,95912.0,95911.0,0.02804196]
[1763210206981,0.17555101,95912.0,95911.0,0.02804196]
[1763210207178,0.17555101,95912.0,95910.0,0.02804196]
[1763210207381,0.04531,95911.0,95910.0,0.02804196]
[1763210207774,0.16031397,95911.0,95910.0,0.02804196]
[1763210208179,0.16031397,95911.0,95909.0,0.02804196]
[1763210208381,0.04531,95904.0,95903.0,0.40446]
[1763210208682,0.1565101,95904.0,95903.0,0.40446]
[1763210211190,0.1565101,95904.0,95903.0,0.44181507]
[1763210212894,0.1565101,95904.0,95903.0,0.40446]
[1763210221214,0.1112001,95904.0,95903.0,0.40446]
[1763210221396,0.1112001,95904.0,95903.0,0.43244857]
[1763210221690,0.3608,95925.0,95916.0,0.05848]
[1763210221691,0.04261,95917.0,95916.0,0.05848]
[1763210221890,0.04261,95917.0,95916.0,0.04594]
[1763210222194,0.16017659,95917.0,95916.0,0.04594]
[1763210222393,0.16017659,95917.0,95916.0,0.05988]
[1763210222794,0.16117659,95917.0,95916.0,0.05988]
[1763210223392,0.16017659,95917.0,95916.0,0.05988]
[1763210223597,0.16117659,95917.0,95916.0,0.05988]
[1763210224294,0.16117659,95917.0,95916.0,0.04594]
[1763210224991,0.04261,95914.0,95911.0,0.0279815]
[1763210225203,0.04261,95909.0,95907.0,0.0279815]
[1763210225389,0.04261,95908.0,95907.0,0.0739215]
[1763210225590,0.16220562,95908.0,95907.0,0.0739215]
[1763210225790,0.04261,95908.0,95907.0,0.04594]
[1763210226090,0.16220562,95908.0,95907.0,0.04594]
[1763210226288,0.16220562,95908.0,95907.0,0.0739215]
[1763210226501,0.16220562,95908.0,95907.0,0.04594]
[1763210226998,0.16320562,95908.0,95907.0,0.04594]
[1763210227201,0.16320562,95908.0,95907.0,0.0739215]
[1763210230002,0.16320562,95908.0,95907.0,0.04594]
[1763210233101,0.16320562,95908.0,95907.0,0.08324867]
[1763210234102,0.16320562,95908.0,95907.0,0.04594]
[1763210241599,0.16220562,95908.0,95907.0,0.04594]
[1763210245006,0.11959562,95908.0,95907.0,0.04594]
[1763210245306,0.11402769,95909.0,95908.0,0.01263]
[1763210245513,0.13602769,95909.0,95908.0,0.05693]
[1763210245816,0.022,95909.0,95908.0,0.05693]
[1763210246018,0.13602769,95909.0,95908.0,0.05693]
[1763210246507,0.15804769,95909.0,95908.0,0.05693]
[1763210246706,0.15904769,95909.0,95908.0,0.05693]
[1763210247415,0.15904769,95909.0,95908.0,0.0443]
[1763210247706,0.04402,95905.0,95904.0,0.07844777]
[1763210247914,0.04402,95905.0,95904.0,0.0443]
[1763210248216,0.15985009,95905.0,95904.0,0.0443]
[1763210251615,0.16085009,95905.0,95904.0,0.0443]
[1763210252213,0.16085009,95905.0,95904.0,0.05728]
[1763210253314,0.16085009,95905.0,95904.0,0.11339777]
[1763210254309,0.11683009,95905.0,95904.0,0.05728]
[1763210255010,0.13888009,95905.0,95904.0,0.05728]
[1763210255208,0.16011009,95905.0,95904.0,0.05728]
[1763210255714,0.15911009,95905.0,95904.0,0.05728]
[1763210255918,0.11683009,95905.0,95904.0,0.05728]
[1763210256622,0.13888009,95905.0,95904.0,0.05728]
[1763210258614,0.16011009,95905.0,95904.0,0.05728]
[1763210273326,0.16011009,95905.0,95904.0,0.0443]
[1763210273528,0.05201,95904.0,95903.0,0.3608]
[1763210273831,0.16261654,95904.0,95903.0,0.3608]
[1763210274834,0.16361654,95904.0,95903.0,0.3608]
[1763210275530,0.04328,95903.0,95902.0,0.00015639]
[1763210275833,0.15514366,95903.0,95902.0,0.00015639]
[1763210277033,0.15514366,95903.0,95897.0,0.0374153]
[1763210277034,0.04328,95898.0,95897.0,0.0374153]
[1763210277229,0.04328,95897.0,95896.0,0.0374153]
[1763210277426,0.04328,95893.0,95892.0,0.0374153]
[1763210277729,0.05201,95892.0,95891.0,0.3608]
[1763210278120,0.1689131,95892.0,95891.0,0.3608]
[1763210278530,0.1689131,95892.0,95891.0,0.38884462]
[1763210278733,0.1689131,95892.0,95891.0,0.3608]
[1763210279933,0.1689131,95892.0,95886.0,0.00026073]
[1763210279934,0.00873,95888.0,95886.0,0.00026073]
[1763210280123,0.04505,95887.0,95886.0,0.00026073]
[1763210280327,0.15502455,95887.0,95886.0,0.02830015]
[1763210280729,0.15502455,95887.0,95886.0,0.00026073]
[1763210282338,0.04505,95883.0,95882.0,0.00015639]
[1763210282643,0.05705803,95880.0,95879.0,0.02803942]
[1763210282833,0.05705803,95880.0,95878.0,0.02803942]
[1763210283141,0.04505,95877.0,95876.0,0.02803942]
[1763210283340,0.04505,95875.0,95874.0,0.02803942]
[1763210283536,0.00219803,95870.0,95868.0,0.0806753]
[1763210283838,0.16211427,95869.0,95868.0,0.0806753]
[1763210284229,0.16211427,95869.0,95868.0,0.04326]
[1763210285035,0.16211427,95869.0,95868.0,0.05627]
[1763210285932,0.16211427,95869.0,95868.0,0.02798141]
[1763210286440,0.04505,95861.0,95860.0,0.40406]
[1763210286939,0.15956414,95861.0,95860.0,0.40406]
[1763210289337,0.15956414,95861.0,95860.0,0.43201855]
[1763210290040,0.15956414,95861.0,95860.0,0.40406]
[1763210290239,0.15956414,95861.0,95860.0,0.44502265]
[1763210291143,0.15956414,95861.0,95860.0,0.41707]
[1763210291645,0.15956414,95861.0,95860.0,0.44502264]
[1763210293338,0.11451414,95861.0,95860.0,0.41707]
[1763210293644,0.16024034,95874.0,95872.0,0.01299]
[1763210293845,0.16024034,95874.0,95873.0,0.04464]
[1763210294145,0.04508,95874.0,95873.0,0.04464]
[1763210294341,0.15877494,95874.0,95873.0,0.04464]
[1763210295840,0.13691494,95874.0,95873.0,0.04464]
[1763210296035,0.11369494,95874.0,95873.0,0.04464]
[1763210296545,0.15992712,95883.0,95882.0,0.04464]
[1763210296745,0.04508,95883.0,95882.0,0.04464]
[1763210297049,0.17049793,95883.0,95882.0,0.04464]
[1763210299038,0.17049793,95883.0,95882.0,0.02251]
[1763210299354,0.04508,95876.0,95875.0,0.05763]
[1763210299746,0.15994995,95876.0,95875.0,0.05763]
[1763210301744,0.15994995,95876.0,95868.0,0.37379]
[1763210301745,0.04508,95871.0,95870.0,0.05045973]
[1763210302046,0.1535637,95871.0,95870.0,0.04464]
[1763210304048,0.04508,95869.0,95868.0,0.3608]
[1763210304243,0.04508,95865.0,95864.0,0.02794973]
[1763210304543,0.1649861,95865.0,95864.0,0.02251]
[1763210305437,0.1417661,95865.0,95862.0,0.02794973]
[1763210305744,0.04508,95863.0,95862.0,0.07258973]
[1763210306144,0.15917518,95863.0,95862.0,0.07258973]
[1763210306346,0.15917518,95863.0,95862.0,0.04464]
[1763210306732,0.15917518,95863.0,95862.0,0.02251]
[1763210306939,0.15917518,95863.0,95860.0,0.3608]
[1763210306940,0.00219803,95860.0,95857.0,0.0599253]
[1763210307139,0.00219803,95860.0,95857.0,0.02251]
[1763210307140,0.04508,95858.0,95857.0,0.02251]
[1763210307446,0.16428357,95858.0,95857.0,0.02251]
[1763210308248,0.16428357,95858.0,95857.0,0.04464]
[1763210309442,0.16428357,95858.0,95857.0,0.02251]
[1763210309643,0.16428357,95858.0,95857.0,0.04518]
[1763210313744,0.14242357,95858.0,95857.0,0.40598]
[1763210314451,0.16465357,95858.0,95857.0,0.40598]
[1763210315946,0.11920357,95858.0,95857.0,0.40598]
[1763210316147,0.16457357,95858.0,95857.0,0.40598]
[1763210316452,0.02314,95858.0,95857.0,0.40598]
[1763210316652,0.1423393,95858.0,95857.0,0.40598]
[1763210317963,0.1191993,95858.0,95857.0,0.40598]
[1763210318258,0.10877214,95859.0,95857.0,0.3608]
[1763210318463,0.13191214,95859.0,95858.0,0.08305882]
[1763210318659,0.3608,95878.0,95857.0,0.3608]
[1763210318660,0.40617,95878.0,95877.0,0.04565]
[1763210318955,0.51653047,95878.0,95877.0,0.02298]
[1763210319159,0.04537,95868.0,95867.0,0.07370543]
[1763210319552,0.15958863,95868.0,95867.0,0.07370543]
[1763210320051,0.15958863,95868.0,95867.0,0.04565]
[1763210321858,0.16058863,95868.0,95867.0,0.04565]
[1763210322448,0.11521863,95868.0,95867.0,0.04565]
[1763210322652,0.13835863,95868.0,95867.0,0.04565]
[1763210322859,0.16058863,95868.0,95867.0,0.04565]
[1763210329965,0.16058863,95868.0,95867.0,0.0737062]
[1763210330270,0.16058863,95868.0,95867.0,0.04565]
[1763210330861,0.04537,95861.0,95860.0,0.08305725]
[1763210331267,0.15504028,95861.0,95860.0,0.08305725]
[1763210331854,0.15504028,95861.0,95860.0,0.04565]
[1763210333362,0.15504028,95861.0,95860.0,0.08305725]
[1763210333760,0.15504028,95861.0,95860.0,0.09701725]
[1763210337158,0.15504028,95861.0,95860.0,0.05961]
[1763210341970,0.04362,95858.0,95853.0,0.05611296]
[1763210342268,0.04362,95853.0,95852.0,0.05611296]
[1763210342573,0.15888217,95853.0,95852.0,0.05611296]
[1763210343374,0.15888217,95853.0,95852.0,0.07865296]
[1763210343563,0.15888217,95853.0,95850.0,0.05611296]
[1763210343766,0.04362,95849.0,95848.0,0.10122296]
[1763210344169,0.15989869,95849.0,95848.0,0.10122296]
[1763210344976,0.15989869,95849.0,95848.0,0.10222296]
[1763210345372,0.15989869,95849.0,95848.0,0.04611]
[1763210346176,0.15989869,95849.0,95848.0,0.02354]
[1763210347765,0.15989869,95849.0,95848.0,0.0572488]
[1763210347987,0.15989869,95849.0,95848.0,0.001]
[1763210348784,0.15989869,95849.0,95848.0,0.03850034]
[1763210350085,0.15989869,95849.0,95848.0,0.001]
[1763210353382,0.15989869,95849.0,95848.0,0.03848053]
[1763210355392,0.15989869,95849.0,95848.0,0.001]
[1763210362800,0.15989869,95849.0,95848.0,0.05985]
[1763210367006,0.15989869,95849.0,95848.0,0.04604]
[1763210369299,0.15989869,95849.0,95848.0,0.05965]
[1763210373603,0.15989869,95849.0,95848.0,0.0877605]
[1763210374105,0.15989869,95849.0,95848.0,0.05965]
[1763210384420,0.13761869,95849.0,95848.0,0.05965]
[1763210384622,0.11627869,95849.0,95848.0,0.05965]
[1763210384922,0.13876869,95849.0,95848.0,0.05965]
[1763210385234,0.16090869,95849.0,95848.0,0.05965]
[1763210385521,0.11627869,95849.0,95848.0,0.42045]
[1763210386723,0.16570885,95860.0,95859.0,0.04493]
[1763210387022,0.04682803,95860.0,95859.0,0.04493]
[1763210387321,0.16790688,95860.0,95859.0,0.08239373]
[1763210388223,0.16790688,95860.0,95859.0,0.04493]
[1763210388424,0.16790688,95860.0,95859.0,0.08239373]
[1763210390019,0.16790688,95860.0,95859.0,0.04493]
[1763210390927,0.14576688,95860.0,95859.0,0.04493]
[1763210391531,0.14576688,95860.0,95859.0,0.08239373]
[1763210391920,0.16790688,95860.0,95859.0,0.08239373]
[1763210393319,0.16790688,95860.0,95859.0,0.04493]
[1763210397518,0.16790688,95860.0,95859.0,0.05854]
[1763210399016,0.12107885,95860.0,95859.0,0.05854]
[1763210399427,0.11547866,95861.0,95860.0,0.04456]
[1763210399620,0.00015648,95862.0,95861.0,0.1489561]
[1763210399820,0.00015648,95862.0,95861.0,0.20516792]
[1763210400029,0.07191953,95890.0,95868.0,0.01307]
[1763210400229,0.04741803,95880.0,95879.0,0.07260034]
[1763210400425,0.16414278,95880.0,95879.0,0.07260034]
[1763210400627,0.05500803,95880.0,95879.0,0.02804034]
[1763210400924,0.17546781,95880.0,95879.0,0.02804034]
[1763210401428,0.04522,95879.0,95878.0,0.02804034]
[1763210401620,0.04522,95879.0,95878.0,0.04456]
[1763210401821,0.15415932,95879.0,95878.0,0.04456]
[1763210402919,0.15415932,95879.0,95878.0,0.07259393]
[1763210403125,0.15415932,95879.0,95878.0,0.04456]
[1763210406627,0.04522,95875.0,95874.0,0.02803393]
[1763210406827,0.00927,95876.0,95867.0,0.03738712]
[1763210406828,0.04522,95871.0,95867.0,0.02803393]
[1763210407030,0.40602,95871.0,95864.0,0.02803393]
[1763210407232,0.51570565,95871.0,95865.0,0.02803393]
[1763210407529,0.51570565,95871.0,95864.0,0.02803393]
[1763210409024,0.51670565,95871.0,95864.0,0.02803393]
[1763210409233,0.51670565,95871.0,95865.0,0.02803393]
[1763210410121,0.51670565,95871.0,95860.0,0.02803393]
[1763210411749,0.04614,95861.0,95860.0,0.07261393]
[1763210412232,0.16101627,95861.0,95860.0,0.04458]
[1763210412425,0.16101627,95861.0,95860.0,0.07263315]
[1763210413333,0.16101627,95861.0,95860.0,0.04458]
[1763210415832,0.16101627,95861.0,95860.0,0.05823]
[1763210418126,0.00927,95888.0,95879.0,0.04357]
[1763210418127,0.04486,95880.0,95879.0,0.04357]
[1763210418327,0.04705803,95880.0,95879.0,0.04357]
[1763210418534,0.16142829,95880.0,95879.0,0.04357]
[1763210419238,0.16242829,95880.0,95879.0,0.04357]
[1763210419637,0.16342829,95880.0,95879.0,0.04357]
[1763210419836,0.04486,95874.0,95873.0,0.07163456]
[1763210420134,0.15793028,95874.0,95873.0,0.04357]
[1763210421435,0.15893028,95874.0,95873.0,0.04357]
[1763210424533,0.15893028,95874.0,95873.0,0.07163116]
[1763210425335,0.15893028,95874.0,95873.0,0.04357]
[1763210427843,0.15793028,95874.0,95873.0,0.04357]
[1763210428032,0.15893028,95874.0,95873.0,0.04357]
[1763210430532,0.15793028,95874.0,95873.0,0.04357]
[1763210430736,0.15893028,95874.0,95873.0,0.04357]
[1763210434940,0.15893028,95874.0,95873.0,0.08095712]
[1763210435337,0.15793028,95874.0,95873.0,0.08097986]
[1763210435746,0.044,95871.0,95870.0,0.38187]
[1763210436043,0.15385099,95871.0,95870.0,0.40339]
[1763210451844,0.13147099,95871.0,95870.0,0.40339]
[1763210452050,0.04415648,95889.0,95888.0,0.00256]
[1763210452244,0.04415648,95889.0,95888.0,0.40078462]
[1763210452548,0.15579849,95889.0,95888.0,0.40078462]
[1763210452744,0.15579849,95889.0,95888.0,0.36336]
[1763210453154,0.15579849,95889.0,95888.0,0.40077283]
[1763210453351,0.15779849,95889.0,95888.0,0.40077283]
[1763210453845,0.15779849,95889.0,95888.0,0.36336]
[1763210454045,0.15679849,95889.0,95888.0,0.3608]
[1763210454941,0.15579849,95889.0,95888.0,0.3608]
[1763210456953,0.15679849,95889.0,95888.0,0.3608]
[1763210459454,0.04411,95883.0,95882.0,0.39949283]
[1763210459646,0.04411,95883.0,95882.0,0.36336]
[1763210459845,0.15850126,95883.0,95882.0,0.36336]
[1763210467049,0.15850126,95883.0,95882.0,0.00256]
[1763210467254,0.15850126,95883.0,95882.0,0.36336]
[1763210480667,0.15850126,95883.0,95882.0,0.3608]
[1763210480973,0.15850126,95883.0,95872.0,0.3608]
[1763210480974,0.04431,95873.0,95872.0,0.3608]
[1763210481278,0.1557959,95873.0,95872.0,0.3608]
[1763210481885,0.1557959,95873.0,95872.0,0.36208]
[1763210486181,0.1557959,95873.0,95872.0,0.3608]
[1763210486377,0.1557959,95873.0,95872.0,0.399509]
[1763210486783,0.1557959,95873.0,95872.0,0.400789]
[1763210491684,0.1557959,95873.0,95872.0,0.36336]
[1763210498182,0.1557959,95873.0,95872.0,0.400789]
[1763210498388,0.1557959,95873.0,95872.0,0.36336]
[1763210503384,0.1557959,95873.0,95872.0,0.40077205]
[1763210507292,0.1557959,95873.0,95872.0,0.36336]
[1763210513891,0.1557959,95873.0,95872.0,0.3608]
[1763210514995,0.1557959,95873.0,95872.0,0.36208]
[1763210515200,0.1557959,95873.0,95872.0,0.36336]
[1763210515400,0.1557959,95873.0,95872.0,0.3608]
[1763210515595,0.1567959,95873.0,95872.0,0.3608]
[1763210520698,0.1567959,95873.0,95872.0,0.36208]
[1763210521010,0.1567959,95873.0,95872.0,0.36336]
[1763210521705,0.1557959,95873.0,95872.0,0.36336]
[1763210541220,0.1343659,95873.0,95872.0,0.36336]
[1763210541418,0.1557559,95873.0,95872.0,0.36336]
[1763210548723,0.1557559,95873.0,95872.0,0.36208]
[1763210548918,0.1557559,95873.0,95872.0,0.36336]
[1763210555828,0.1567559,95873.0,95872.0,0.36336]
[1763210561135,0.1557559,95873.0,95872.0,0.36336]
[1763210575737,0.1557559,95873.0,95872.0,0.33840795]
[1763210575936,0.04312,95867.0,95866.0,0.04896786]
[1763210576245,0.19534932,95867.0,95866.0,0.04626273]
[1763210576634,0.15778028,95867.0,95866.0,0.04626273]
[1763210576831,0.19534932,95867.0,95866.0,0.04626273]
[1763210577143,0.15778028,95867.0,95866.0,0.04626273]
[1763210577335,0.15778028,95867.0,95866.0,0.06901273]
[1763210577534,0.15778028,95867.0,95866.0,0.09149273]
[1763210577733,0.15878028,95867.0,95866.0,0.09149273]
[1763210585948,0.15878028,95867.0,95866.0,0.027551]
[1763210588053,0.15878028,95867.0,95854.0,4e-05]
[1763210588054,0.0458,95855.0,95854.0,4e-05]
[1763210588362,0.0458,95847.0,95846.0,0.04321084]
[1763210588751,0.16140503,95847.0,95846.0,0.00026084]
[1763210589052,0.16140503,95847.0,95846.0,0.02182084]
[1763210589251,0.52220503,95847.0,95846.0,0.02182084]
[1763210589953,0.52220503,95847.0,95846.0,0.00026084]
[1763210590951,0.52220503,95847.0,95846.0,0.00126084]
[1763210604466,0.52420503,95847.0,95846.0,0.00026084]
[1763210605866,0.52320503,95847.0,95846.0,0.00026084]
[1763210606054,0.0443,95830.0,95829.0,0.40666]
[1763210606254,0.04649803,95830.0,95829.0,0.40666]
[1763210606461,0.16680885,95830.0,95829.0,0.40666]
[1763210608158,0.17752673,95830.0,95829.0,0.40666]
[1763210609061,0.17752673,95830.0,95829.0,0.04586]
[1763210612562,0.17752673,95830.0,95829.0,0.02264]
[1763210613462,0.17752673,95830.0,95829.0,0.04474]
[1763210613762,0.17752673,95830.0,95824.0,0.04542251]
[1763210613763,0.04351,95825.0,95824.0,0.04542251]
[1763210614161,0.15954864,95825.0,95824.0,8.251e-05]
[1763210615455,0.04351,95816.0,95815.0,0.05003653]
[1763210615765,0.51822298,95816.0,95815.0,0.05003653]
[1763210615963,0.53113298,95816.0,95815.0,0.00469653]
[1763210616364,0.53113298,95816.0,95815.0,0.02793653]
[1763210616664,0.53121277,95816.0,95815.0,0.02793653]
[1763210616867,0.51830277,95816.0,95815.0,0.05003653]
[1763210617763,0.51830277,95816.0,95815.0,0.00469653]
[1763210617971,0.04351,95808.0,95807.0,0.06078176]
[1763210618263,0.16213696,95808.0,95807.0,0.04534]
[1763210619169,0.16213696,95808.0,95807.0,0.04634]
[1763210619872,0.17140696,95808.0,95807.0,0.04634]
[1763210620064,0.17140696,95808.0,95807.0,0.04734]
[1763210620372,0.17140696,95808.0,95807.0,0.002]
[1763210620572,0.17148947,95808.0,95807.0,0.002]
[1763210621066,0.53228947,95808.0,95807.0,0.02524]
[1763210621369,0.53228947,95808.0,95807.0,0.002]
[1763210622169,0.53228947,95808.0,95793.0,0.03754176]
[1763210622374,0.53228947,95808.0,95793.0,0.04534]
[1763210622375,0.04351,95794.0,95793.0,0.04534]
[1763210622562,0.04359251,95794.0,95793.0,0.04534]
[1763210622871,0.05642,95785.0,95784.0,0.3608]
[1763210623068,0.04351,95776.0,95775.0,0.00469849]
[1763210623371,0.52189967,95776.0,95775.0,0.00469849]
[1763210623576,0.52189967,95776.0,95753.0,0.39834176]
[1763210623577,0.02197,95767.0,95753.0,0.3608]
[1763210623766,0.40439251,95767.0,95753.0,0.3608]
[1763210623962,0.40439251,95767.0,95739.0,0.03754176]
[1763210623963,0.04351,95759.0,95739.0,0.03754176]
[1763210624169,0.40439251,95759.0,95742.0,0.01392]
[1763210624364,0.52189967,95759.0,95742.0,0.01392]
[1763210624668,0.53118161,95759.0,95742.0,0.01392]
[1763210625071,0.53018161,95759.0,95758.0,0.04544345]
[1763210625371,0.53018161,95759.0,95758.0,0.02334345]
[1763210625772,0.53018161,95759.0,95758.0,0.00010345]
[1763210626772,0.53018161,95759.0,95758.0,0.00110345]
[1763210627476,0.53018161,95759.0,95758.0,0.00010345]
[1763210628869,0.53018161,95759.0,95758.0,0.04544345]
[1763210636981,0.53018161,95759.0,95758.0,0.00010345]
[1763210638880,0.04277,95737.0,95736.0,0.05876]
[1763210639086,0.40357,95737.0,95736.0,0.04484]
[1763210639287,0.51416226,95737.0,95736.0,0.04484]
[1763210639585,0.51416226,95737.0,95736.0,0.05777]
[1763210640183,0.51423536,95737.0,95736.0,0.001]
[1763210640377,0.51423536,95737.0,95736.0,0.002]
[1763210640583,0.05302,95736.0,95720.0,0.37373]
[1763210640978,0.16608719,95736.0,95720.0,0.37373]
[1763210641581,0.02145,95727.0,95726.0,0.04510116]
[1763210641786,0.40357,95727.0,95726.0,0.04510116]
[1763210641988,0.518401,95727.0,95726.0,0.04510116]
[1763210642374,0.517401,95727.0,95726.0,0.04510116]
[1763210643189,0.517401,95727.0,95726.0,0.04610116]
[1763210644687,0.51749448,95727.0,95726.0,0.04610116]
[1763210646280,0.51749448,95727.0,95726.0,0.00126116]
[1763210647586,0.51749448,95727.0,95726.0,0.02330116]
[1763210647788,0.51749448,95727.0,95726.0,0.04610116]
[1763210652702,0.49704448,95727.0,95726.0,0.04610116]
[1763210653090,0.51951448,95727.0,95726.0,0.04610116]
[1763210653792,0.11492448,95727.0,95726.0,0.04610116]
[1763210654501,0.3608,95737.0,95736.0,0.05833]
[1763210654701,0.03756904,95748.0,95739.0,0.04489]
[1763210654702,0.00219803,95740.0,95739.0,0.04489]
[1763210655092,0.11860846,95740.0,95739.0,0.04489]
[1763210655596,0.11868833,95740.0,95739.0,0.04489]
[1763210655996,0.11968833,95740.0,95739.0,0.04489]
[1763210659202,0.52546833,95740.0,95739.0,0.04489]
[1763210659408,0.52546833,95740.0,95739.0,0.02226]
[1763210659988,0.52546833,95740.0,95739.0,0.04489]
[1763210660893,0.16466833,95740.0,95739.0,0.02226]
[1763210661202,0.04498,95731.0,95730.0,0.41913]
[1763210661597,0.15589967,95731.0,95730.0,0.41913]
[1763210662599,0.15689967,95731.0,95730.0,0.41913]
[1763210664395,0.13442967,95731.0,95730.0,0.41913]
[1763210664790,0.11191967,95731.0,95730.0,0.41913]
[1763210666004,0.13442967,95731.0,95730.0,0.41913]
[1763210666916,0.11191967,95731.0,95730.0,0.41913]
[1763210667211,0.08681694,95731.0,95730.0,0.41913]
[1763210668197,0.06787718,95731.0,95730.0,0.41913]
[1763210668401,0.06787718,95731.0,95730.0,0.45667311]
[1763210669212,0.06787718,95731.0,95730.0,0.41913]
[1763210671511,0.03287718,95731.0,95730.0,0.41913]
[1763210671710,0.03187718,95731.0,95730.0,0.41913]
[1763210672306,0.03287718,95731.0,95730.0,0.41913]
[1763210672803,0.03187718,95731.0,95730.0,0.41913]
[1763210673213,7.987e-05,95740.0,95739.0,0.04529]
[1763210673412,7.987e-05,95740.0,95739.0,0.40609]
[1763210673714,0.11199315,95740.0,95739.0,0.40609]
[1763210675113,0.11299315,95740.0,95739.0,0.40609]
[1763210675305,0.08789218,95740.0,95739.0,0.40609]
[1763210675504,0.08689218,95740.0,95739.0,0.40609]
[1763210675705,0.08789218,95740.0,95739.0,0.40609]
[1763210676108,0.00015664,95746.0,95745.0,0.04529]
[1763210676509,0.14218046,95746.0,95745.0,0.04529]
[1763210677413,0.16419046,95746.0,95745.0,0.05809]
[1763210677912,0.16519046,95746.0,95745.0,0.05809]
[1763210679215,0.16519046,95746.0,95745.0,0.04529]
[1763210686021,0.16519046,95746.0,95745.0,0.05809]
[1763210686516,0.14318046,95746.0,95745.0,0.05809]
[1763210686717,0.12003046,95746.0,95745.0,0.05809]
[1763210687216,0.00115664,95746.0,95745.0,0.05809]
[1763210688023,0.00015664,95746.0,95745.0,0.05809]
[1763210689525,0.40596,95758.0,95757.0,0.04529]
[1763210689932,0.52588754,95758.0,95757.0,0.04529]
[1763210691032,0.16508754,95758.0,95757.0,0.04529]
[1763210691733,0.16608754,95758.0,95757.0,0.04529]
[1763210697545,0.04516,95754.0,95753.0,0.03755815]
[1763210697845,0.15781032,95754.0,95753.0,0.06040815]
[1763210698046,0.15781032,95754.0,95753.0,0.08286815]
[1763210698746,0.15781032,95754.0,95753.0,0.04531]
[1763210698945,0.15881032,95754.0,95753.0,0.04531]
[1763210701344,0.15781032,95754.0,95753.0,0.08286815]
[1763210701543,0.15881032,95754.0,95753.0,0.04531]
[1763210701738,0.15881032,95754.0,95753.0,0.08286815]
[1763210701937,0.001,95754.0,95753.0,0.08286815]
[1763210702144,0.01041843,95778.0,95766.0,0.04398]
[1763210702340,0.04586,95779.0,95778.0,0.04398]
[1763210702644,0.15978939,95779.0,95778.0,0.04398]
[1763210703945,0.16078939,95779.0,95778.0,0.04398]
[1763210704146,0.16078939,95779.0,95778.0,0.05734]
[1763210704738,0.16078939,95779.0,95778.0,0.04398]
[1763210705438,0.16078939,95779.0,95778.0,0.05734]
[1763210707443,0.16078939,95779.0,95778.0,0.04398]
[1763210707844,0.04586,95774.0,95773.0,0.40478]
[1763210709252,0.15530575,95774.0,95773.0,0.38232]
[1763210709551,0.04805803,95770.0,95769.0,0.04413664]
[1763210709951,0.16560066,95770.0,95769.0,0.04413664]
[1763210716246,0.16560066,95770.0,95769.0,0.08165069]
[1763210719243,0.17889066,95770.0,95769.0,0.08165069]
[1763210719445,0.17889066,95770.0,95769.0,0.04413664]
[1763210719740,0.17889066,95770.0,95769.0,0.00015664]
[1763210720149,0.04392,95766.0,95765.0,0.3608]
[1763210720548,0.16154264,95766.0,95765.0,0.3608]
[1763210721251,0.16154264,95766.0,95761.0,0.03751405]
[1763210721548,0.04392,95757.0,95756.0,0.06007069]
[1763210721754,0.04392,95757.0,95756.0,0.00015664]
[1763210721945,0.15661102,95757.0,95756.0,0.00015664]
[1763210723554,0.15761102,95757.0,95756.0,0.00015664]
[1763210724054,0.15661102,95757.0,95756.0,0.00015664]
[1763210726651,0.02159,95742.0,95741.0,0.03748282]
[1763210726851,0.04392,95741.0,95740.0,0.03748282]
[1763210727060,0.04392,95741.0,95730.0,0.10806704]
[1763210727061,0.05721,95736.0,95735.0,0.03748282]
[1763210727256,0.04392,95733.0,95730.0,0.03748282]
[1763210727561,0.04392,95728.0,95727.0,0.05988282]
[1763210727746,0.04392,95728.0,95726.0,0.03774398]
[1763210727948,0.04312,95727.0,95726.0,0.03774398]
[1763210728158,0.04312,95727.0,95726.0,0.00026116]
[1763210728452,0.16439348,95727.0,95726.0,0.00026116]
[1763210728844,0.16339348,95727.0,95726.0,0.00026116]
[1763210729361,0.16239348,95727.0,95726.0,0.00026116]
[1763210729757,0.16239348,95727.0,95726.0,0.04514116]
[1763210730160,0.16239348,95727.0,95726.0,0.00026116]
[1763210732948,0.16239348,95727.0,95726.0,0.04514116]
[1763210733150,0.01548803,95730.0,95726.0,0.04514116]
[1763210733151,0.00219803,95730.0,95726.0,0.04514116]
[1763210733354,0.00219803,95730.0,95729.0,0.04488]
[1763210733355,0.02545803,95730.0,95729.0,0.04488]
[1763210733658,0.16829046,95730.0,95729.0,0.04488]
[1763210735053,0.16929046,95730.0,95729.0,0.04488]
[1763210737446,0.12130243,95730.0,95729.0,0.04488]
[1763210739274,0.001,95730.0,95729.0,0.04488]
[1763210740158,0.001,95730.0,95729.0,0.14942]
[1763210741465,0.04679,95730.0,95729.0,0.04488]
[1763210743163,0.04898803,95730.0,95729.0,0.04488]
[1763210747260,0.02645803,95730.0,95729.0,0.08236282]
[1763210747463,0.00319803,95730.0,95729.0,0.08236282]
[1763210747968,0.00319803,95730.0,95729.0,0.04488]
[1763210748154,0.001,95730.0,95729.0,0.04488]
[1763210749070,0.02426,95730.0,95729.0,0.04488]
[1763210749971,0.001,95730.0,95729.0,0.04488]
[1763210750468,0.02426,95730.0,95729.0,0.04488]
[1763210750669,0.001,95730.0,95729.0,0.04488]
[1763210751774,0.02426,95730.0,95729.0,0.04488]